lending/lending_fUSD_20240219
["ID","MTS","AMOUNT","RATE_DAILY","PERIOD"]
[314502909,1708377149922,-500.0,0.00050136,30]
[314502910,1708377149937,-877.27,0.00050136,30]
[314502911,1708377149950,-1539.61,0.00050136,30]
[314502912,1708377149965,-740.11,0.00050136,30]
[314502913,1708377149980,-774.82,0.00050136,30]
[314502914,1708377149995,-500.0,0.00050136,30]
[314502915,1708377150010,-530.62,0.00050136,30]
[314502916,1708377150025,-500.0,0.00050136,30]
[314502917,1708377150047,-1422.42,0.00050136,30]
[314502918,1708377150062,-500.0,0.00050136,30]
[314502919,1708377150077,-500.0,0.00050136,30]
[314502920,1708377150092,-2610.19,0.00050136,30]
[314502921,1708377150107,-1255.72,0.00050136,30]
[314502922,1708377150122,-1016.32,0.00050136,30]
[314502923,1708377150138,-1233.1,0.00050136,30]
[314502924,1708377150152,-188.13674746,0.00050136,30]
[314502925,1708377150167,-5037.62,0.00050136,30]
[314502926,1708377150182,-1545.99,0.00050136,30]
[314502927,1708377150197,-771.45,0.00050136,30]
[314502928,1708377150210,-583.37,0.00050136,30]
[314502929,1708377150224,-996.35,0.00050136,30]
[314502930,1708377150239,-753.57,0.00050136,30]
[314502931,1708377150253,-500.0,0.00050136,30]
[314502932,1708377150268,-1249.41,0.00050136,30]
[314502933,1708377150283,-609.95,0.00050136,30]
[314502934,1708377150297,-4368.41,0.00050136,30]
[314502935,1708377150311,-3806.98,0.00050136,30]
[314502936,1708377150326,-1205.55,0.00050136,30]
[314502937,1708377150340,-1108.98,0.00050136,30]
[314502938,1708377150355,-500.0,0.00050136,30]
[314502939,1708377150369,-745.48,0.00050136,30]
[314502940,1708377150384,-500.0,0.00050136,30]
[314502941,1708377150398,-761.98,0.00050136,30]
[314502942,1708377150418,-1070.44,0.00050136,30]
[314502943,1708377150432,-2405.19,0.00050136,30]
[314502944,1708377150446,-1483.04,0.00050136,30]
[314502945,1708377150461,-656.25,0.00050136,30]
[314502946,1708377150478,-500.0,0.00050136,30]
[314502947,1708377150492,-4891.81,0.00050136,30]
[314502948,1708377150772,-703.9,0.00050136,30]
[314502949,1708377150784,-1120.83,0.00050136,30]
[314502950,1708377150793,-500.0,0.00050136,30]
[314502951,1708377150803,-500.0,0.00050136,30]
[314502952,1708377150813,-7009.22,0.00050136,30]
[314502953,1708377150822,-583.58,0.00050136,30]
[314502954,1708377150832,-5142.29,0.00050136,30]
[314502955,1708377150841,-500.0,0.00050136,30]
[314502956,1708377150851,-1149.32,0.00050136,30]
[314502957,1708377150861,-1818.57,0.00050136,30]
[314502958,1708377150870,-713.94,0.00050136,30]
[314502959,1708377150880,-550.56,0.00050136,30]
[314502960,1708377150889,-2123.12,0.00050136,30]
[314502961,1708377150898,-820.56,0.00050136,30]
[314502962,1708377150908,-214.23057135,0.00050136,30]
[314502963,1708377150918,-4375.89,0.00050136,30]
[314502964,1708377150927,-500.0,0.00050136,30]
[314502965,1708377150937,-1716.3,0.00050136,30]
[314502966,1708377150947,-1435.17,0.00050136,30]
[314502967,1708377150956,-1857.4,0.00050136,30]
[314502968,1708377150966,-505.27,0.00050136,2]
[314502969,1708377150977,-1170.62,0.00050136,30]
[314502970,1708377150986,-1644.0,0.00050136,30]
[314502971,1708377150996,-9747.42,0.00050136,30]
[314502972,1708377151005,-500.0,0.00050136,30]
[314502973,1708377151015,-699.58,0.00050136,30]
[314502974,1708377151024,-500.0,0.00050136,30]
[314502975,1708377151033,-1379.02,0.00050136,30]
[314502976,1708377151042,-500.0,0.00050136,30]
[314502977,1708377151051,-1052.13,0.00050136,30]
[314502978,1708377151060,-504.45,0.00050136,30]
[314502979,1708377151070,-2820.04,0.00050136,30]
[314502980,1708377151079,-1201.01,0.00050136,30]
[314502981,1708377151089,-1773.34,0.00050136,30]
[314502982,1708377151098,-500.0,0.00050136,30]
[314502983,1708377151109,-2704.66,0.00050136,30]
[314502984,1708377151119,-1527.67,0.00050136,30]
[314502985,1708377151129,-3977.18,0.00050136,30]
[314502986,1708377151138,-500.0,0.00050136,30]
[314502987,1708377151147,-582.39,0.00050136,30]
[314502988,1708377151157,-825.53,0.00050136,30]
[314502989,1708377151167,-898.27,0.00050136,30]
[314502990,1708377151177,-2898.65,0.00050136,30]
[314502991,1708377151186,-603.45,0.00050136,30]
[314502992,1708377151195,-1746.66,0.00050136,30]
[314502993,1708377151205,-2731.53,0.00050136,30]
[314502994,1708377151215,-968.66,0.00050136,30]
[314502995,1708377151224,-500.0,0.00050136,30]
[314502996,1708377151233,-500.0,0.00050136,30]
[314502997,1708377151243,-500.0,0.00050136,30]
[314502998,1708377151252,-857.25,0.00050136,30]
[314502999,1708377151261,-1486.37,0.00050136,30]
[314503000,1708377151271,-1149.63,0.00050136,30]
[314503001,1708377151281,-1224.19,0.00050136,30]
[314503002,1708377151291,-1243.1,0.00050136,30]
[314503003,1708377151301,-1388.67,0.00050136,30]
[314503004,1708377151310,-740.69,0.00050136,30]
[314503005,1708377151320,-1119.06,0.00050136,30]
[314503006,1708377151330,-500.0,0.00050136,30]
[314503007,1708377151340,-500.0,0.00050136,30]
[314503008,1708377151349,-995.4,0.00050136,30]
[314503009,1708377151359,-780.29,0.00050136,30]
[314503010,1708377151369,-500.0,0.00050136,30]
[314503011,1708377151379,-1750.39,0.00050136,30]
[314503012,1708377151390,-734.28,0.00050136,30]
[314503013,1708377151399,-1107.14,0.00050136,30]
[314503014,1708377151409,-500.0,0.00050136,30]
[314503015,1708377151418,-8099.08,0.00050136,30]
[314503016,1708377151428,-500.0,0.00050136,30]
[314503017,1708377151437,-518.58,0.00050136,30]
[314503018,1708377151447,-575.48,0.00050136,30]
[314503019,1708377151457,-500.0,0.00050136,30]
[314503020,1708377151467,-571.0,0.00050137,120]
[314503021,1708377151479,-150.0,0.00050137,30]
[314503022,1708377151489,-150.0,0.00050137,30]
[314503023,1708377151499,-150.0,0.00050137,30]
[314503024,1708377151510,-150.0,0.00050137,30]
[314503025,1708377151520,-1448.17252855,0.00050153,14]
[314503026,1708377151529,-729.05478112,0.000502,30]
[314503027,1708377151539,-1192.0,0.000502,7]
[314503028,1708377151548,-237763.24,0.00050214,6]
[314503029,1708377151559,-152.0,0.0005025,8]
[314503030,1708377151569,-1292.63609359,0.00050332,120]
[314503031,1708377151578,-161.25919619,0.00050373,60]
[314503032,1708377151587,-1256.3589023,0.0005038,120]
[314503033,1708377151597,-150.0,0.000504,2]
[314503034,1708377151607,-500.0,0.000504,2]
[314503035,1708377151616,-213.72720034,0.0005041,30]
[314503036,1708377151625,-500.0,0.0005041,30]
[314503037,1708377151635,-500.0,0.0005041,30]
[314503038,1708377151644,-500.0,0.0005041,30]
[314503039,1708377151653,-500.0,0.0005041,30]
[314503040,1708377151663,-602.01,0.0005041,30]
[314503041,1708377151672,-500.0,0.0005041,30]
[314503042,1708377151682,-512.36,0.0005041,30]
[314503043,1708377151691,-732.56,0.0005041,30]
[314503044,1708377151701,-605.18,0.0005041,30]
[314503045,1708377151710,-411.96,0.0005041,30]
[314503046,1708377151720,-589.7,0.0005041,30]
[314503047,1708377151729,-573.89,0.0005041,30]
[314503048,1708377151738,-606.28,0.0005041,30]
[314503049,1708377151748,-1049.77,0.0005041,30]
[314503050,1708377151757,-305.31793399,0.0005041,30]
[314503051,1708377151766,-500.0,0.0005041,30]
[314503052,1708377151776,-500.0,0.0005041,30]
[314503053,1708377151786,-500.0,0.0005041,30]
[314503054,1708377151795,-570.76,0.0005041,30]
[314503055,1708377151805,-500.0,0.0005041,30]
[314503056,1708377151814,-222.06,0.0005041,30]
[314503057,1708377151824,-544.97,0.0005041,30]
[314503058,1708377151833,-500.0,0.0005041,30]
[314503059,1708377151843,-500.0,0.0005041,30]
[314503060,1708377151852,-500.0,0.0005041,30]
[314503061,1708377151862,-500.0,0.0005041,30]
[314503062,1708377151872,-500.0,0.0005041,30]
[314503063,1708377151881,-500.0,0.0005041,30]
[314503064,1708377151891,-500.0,0.0005041,30]
[314503065,1708377151902,-500.0,0.0005041,30]
[314503066,1708377151912,-500.0,0.0005041,30]
[314503067,1708377151924,-505.06,0.0005041,30]
[314503068,1708377151934,-500.0,0.0005041,30]
[314503069,1708377151944,-1141.6,0.0005041,30]
[314503070,1708377151954,-500.0,0.0005041,30]
[314503071,1708377151965,-500.0,0.0005041,30]
[314503072,1708377151974,-500.0,0.0005041,30]
[314503073,1708377151985,-567.74,0.0005041,30]
[314503074,1708377151994,-777.32,0.0005041,2]
[314503075,1708377152004,-500.0,0.0005041,30]
[314503076,1708377152013,-603.14,0.0005041,30]
[314503077,1708377152022,-500.0,0.0005041,30]
[314503078,1708377152032,-500.0,0.0005041,30]
[314503079,1708377152041,-500.0,0.0005041,30]
[314503080,1708377152050,-750.4,0.0005041,30]
[314503081,1708377152060,-599.04,0.0005041,30]
[314503082,1708377152069,-500.0,0.0005041,30]
[314503083,1708377152079,-500.0,0.0005041,30]
[314503084,1708377152089,-500.0,0.0005041,30]
[314503085,1708377152099,-500.0,0.0005041,30]
[314503086,1708377152109,-500.0,0.0005041,30]
[314503087,1708377152119,-500.0,0.0005041,30]
[314503088,1708377152128,-690.28,0.0005041,30]
[314503089,1708377152138,-784.44,0.0005041,30]
[314503090,1708377152148,-500.0,0.0005041,30]
[314503091,1708377152158,-533.46,0.0005041,30]
[314503092,1708377152169,-712.44,0.0005041,30]
[314503093,1708377152179,-568.95,0.0005041,30]
[314503094,1708377152189,-500.0,0.0005041,30]
[314503095,1708377152200,-543.64,0.0005041,30]
[314503096,1708377152210,-500.0,0.0005041,30]
[314503097,1708377152220,-513.43,0.0005041,30]
[314503098,1708377152229,-1175.74,0.0005041,30]
[314503099,1708377152239,-500.0,0.0005041,30]
[314503100,1708377152248,-500.0,0.0005041,30]
[314503101,1708377152258,-500.0,0.0005041,30]
[314503102,1708377152269,-193.32,0.0005041,30]
[314503103,1708377152278,-500.0,0.0005041,30]
[314503104,1708377152288,-500.0,0.0005041,30]
[314503105,1708377152297,-500.0,0.0005041,30]
[314503106,1708377152306,-192.35103202,0.0005041,30]
[314503107,1708377152316,-500.0,0.0005041,30]
[314503108,1708377152326,-521.63,0.0005041,30]
[314503109,1708377152335,-523.21,0.0005041,30]
[314503110,1708377152344,-500.0,0.0005041,30]
[314503111,1708377152354,-500.0,0.0005041,30]
[314503112,1708377152364,-507.79748215,0.0005041,30]
[314503113,1708377152374,-513.88,0.0005041,30]
[314503114,1708377152383,-500.0,0.0005041,30]
[314503115,1708377152393,-550.81,0.0005041,30]
[314503116,1708377152402,-500.0,0.0005041,30]
[314503117,1708377152411,-660.98,0.0005041,30]
[314503118,1708377152421,-500.0,0.0005041,30]
[314503119,1708377152431,-500.0,0.0005041,30]
[314503120,1708377152441,-588.08,0.0005041,30]
[314503121,1708377152450,-500.0,0.0005041,30]
[314503122,1708377152459,-555.82,0.0005041,30]
[314503123,1708377152470,-597.62,0.0005041,30]
[314503124,1708377152482,-611.78,0.0005041,30]
[314503125,1708377152492,-500.0,0.0005041,30]
[314503126,1708377152502,-918.19,0.0005041,30]
[314503127,1708377152515,-578.31,0.0005041,30]
[314503128,1708377152525,-500.0,0.0005041,30]
[314503129,1708377152536,-500.0,0.0005041,30]
[314503130,1708377152546,-527.96,0.0005041,30]
[314503131,1708377152556,-500.0,0.0005041,30]
[314503132,1708377152567,-553.98,0.0005041,30]
[314503133,1708377152577,-166.46,0.0005041,30]
[314503134,1708377152587,-243.56,0.0005041,30]
[314503135,1708377152597,-529.69,0.0005041,30]
[314503136,1708377152608,-500.0,0.0005041,30]
[314503137,1708377152618,-500.0,0.0005041,30]
[314503138,1708377152627,-541.71,0.0005041,30]
[314503139,1708377152636,-2039.93,0.0005041,30]
[314503140,1708377152646,-556.74,0.0005041,30]
[314503141,1708377152656,-500.0,0.0005041,30]
[314503142,1708377152665,-692.58,0.0005041,30]
[314503143,1708377152675,-1605.07,0.0005041,30]
[314503144,1708377152684,-552.5,0.0005041,30]
[314503145,1708377152694,-500.0,0.0005041,30]
[314503146,1708377152703,-500.0,0.0005041,30]
[314503147,1708377152713,-500.0,0.0005041,30]
[314503148,1708377152722,-1090.94,0.0005041,30]
[314503149,1708377152732,-500.0,0.0005041,30]
[314503150,1708377152741,-591.77,0.0005041,30]
[314503151,1708377152751,-500.0,0.0005041,30]
[314503152,1708377152761,-664.26,0.0005041,30]
[314503153,1708377152771,-500.0,0.0005041,30]
[314503154,1708377152780,-1161.62,0.0005041,30]
[314503155,1708377152790,-500.0,0.0005041,30]
[314503156,1708377152799,-4690.89,0.0005041,30]
[314503157,1708377152809,-646.62,0.0005041,30]
[314503158,1708377152819,-635.19,0.0005041,30]
[314503159,1708377152828,-514.25,0.0005041,30]
[314503160,1708377152837,-667.9,0.0005041,30]
[314503161,1708377152846,-2224.42,0.0005041,30]
[314503162,1708377152856,-538.23,0.0005041,30]
[314503163,1708377152865,-500.0,0.0005041,30]
[314503164,1708377152875,-500.0,0.0005041,30]
[314503165,1708377152884,-516.68,0.0005041,30]
[314503166,1708377152894,-1819.91,0.0005041,30]
[314503167,1708377152904,-615.42,0.0005041,30]
[314503168,1708377152913,-500.0,0.0005041,30]
[314503169,1708377152923,-500.0,0.0005041,30]
[314503170,1708377152933,-500.0,0.0005041,30]
[314503171,1708377152942,-617.0,0.0005041,30]
[314503172,1708377152951,-544.62,0.0005041,30]
[314503173,1708377152960,-809.73,0.0005041,30]
[314503174,1708377152970,-500.0,0.0005041,30]
[314503175,1708377152979,-500.0,0.0005041,30]
[314503176,1708377152989,-515.68,0.0005041,30]
[314503177,1708377152998,-500.0,0.0005041,30]
[314503178,1708377153008,-150.24493853,0.0005041,30]
[314503179,1708377153017,-500.0,0.0005041,30]
[314503180,1708377153027,-500.0,0.0005041,30]
[314503181,1708377153036,-1052.96,0.0005041,30]
[314503182,1708377153045,-553.52,0.0005041,30]
[314503183,1708377153054,-590.34,0.0005041,30]
[314503184,1708377153063,-500.0,0.0005041,30]
[314503185,1708377153072,-566.64,0.0005041,30]
[314503186,1708377153081,-500.0,0.0005041,30]
[314503187,1708377153091,-500.0,0.0005041,30]
[314503188,1708377153100,-500.0,0.0005041,30]
[314503189,1708377153110,-500.0,0.0005041,30]
[314503190,1708377153119,-519.09,0.0005041,30]
[314503191,1708377153129,-772.36,0.0005041,30]
[314503192,1708377153138,-1319.16,0.0005041,30]
[314503193,1708377153147,-500.0,0.0005041,30]
[314503194,1708377153157,-500.0,0.0005041,30]
[314503195,1708377153167,-500.0,0.0005041,30]
[314503196,1708377153176,-558.08,0.0005041,30]
[314503197,1708377153186,-886.59,0.0005041,30]
[314503198,1708377153196,-767.53,0.0005041,30]
[314503199,1708377153206,-500.0,0.0005041,30]
[314503200,1708377153216,-677.61,0.0005041,30]
[314503201,1708377153227,-521.79,0.0005041,30]
[314503202,1708377153237,-495.0927648,0.0005041,30]
[314503203,1708377153248,-594.14,0.0005041,30]
[314503204,1708377153258,-500.0,0.0005041,30]
[314503205,1708377153269,-781.41,0.0005041,30]
[314503206,1708377153280,-570.23743868,0.0005041,30]
[314503207,1708377153290,-745.38,0.0005041,30]
[314503208,1708377153300,-500.0,0.0005041,30]
[314503209,1708377153310,-1287.42,0.0005041,30]
[314503210,1708377153321,-500.0,0.0005041,30]
[314503211,1708377153331,-230.11,0.0005041,30]
[314503212,1708377153341,-1082.3,0.0005041,30]
[314503213,1708377153351,-1242.47,0.0005041,30]
[314503214,1708377153361,-500.0,0.0005041,30]
[314503215,1708377153372,-627.94,0.0005041,30]
[314503216,1708377153383,-500.0,0.0005041,30]
[314503217,1708377153393,-505.9,0.0005041,30]
[314503218,1708377153404,-500.0,0.0005041,30]
[314503219,1708377153414,-529.79,0.0005041,30]
[314503220,1708377153425,-536.14,0.0005041,30]
[314503221,1708377153435,-500.0,0.0005041,30]
[314503222,1708377153445,-924.48,0.0005041,30]
[314503223,1708377153456,-3104.74,0.0005041,30]
[314503224,1708377153470,-523.82,0.0005041,30]
[314503225,1708377153481,-557.18,0.0005041,30]
[314503226,1708377153492,-500.0,0.0005041,30]
[314503227,1708377153502,-1017.28,0.0005041,30]
[314503228,1708377153514,-2181.83,0.0005041,30]
[314503229,1708377153524,-804.05,0.0005041,30]
[314503230,1708377153534,-500.0,0.0005041,30]
[314503231,1708377153545,-837.03,0.0005041,30]
[314503232,1708377153555,-1389.72,0.0005041,30]
[314503233,1708377153565,-2026.93,0.0005041,30]
[314503234,1708377153575,-654.5,0.0005041,30]
[314503235,1708377153585,-771.23,0.0005041,30]
[314503236,1708377153595,-500.44,0.0005041,30]
[314503237,1708377153606,-500.0,0.0005041,30]
[314503238,1708377153616,-604.81,0.0005041,30]
[314503239,1708377153626,-1426.77,0.0005041,30]
[314503240,1708377153635,-1086.95,0.0005041,30]
[314503241,1708377153645,-527.43,0.0005041,30]
[314503242,1708377153654,-500.0,0.0005041,30]
[314503243,1708377153664,-1745.38,0.0005041,30]
[314503244,1708377153674,-1075.7,0.0005041,30]
[314503245,1708377153684,-1268.71,0.0005041,30]
[314503246,1708377153694,-886.05,0.0005041,30]
[314503247,1708377153704,-899.22,0.0005041,30]
[314503248,1708377153911,-735.92,0.0005041,30]
[314503249,1708377153923,-1833.32,0.0005041,30]
[314503250,1708377153933,-2702.11,0.0005041,30]
[314503251,1708377153942,-500.0,0.0005041,30]
[314503252,1708377153952,-10950.38,0.0005041,30]
[314503253,1708377153962,-741.32,0.0005041,30]
[314503254,1708377153981,-3140.24,0.0005041,30]
[314503255,1708377153990,-878.99,0.0005041,30]
[314503256,1708377154000,-2678.83,0.0005041,30]
[314503257,1708377154011,-500.0,0.0005041,30]
[314503258,1708377154020,-500.0,0.0005041,30]
[314503259,1708377154030,-1835.49,0.0005041,30]
[314503260,1708377154040,-694.62,0.0005041,30]
[314503261,1708377154050,-503.56,0.0005041,30]
[314503262,1708377154059,-20395.47,0.0005041,30]
[314503263,1708377154073,-2331.98,0.0005041,30]
[314503264,1708377154083,-599.22,0.0005041,30]
[314503265,1708377154093,-1756.54,0.0005041,30]
[314503266,1708377154103,-789.92,0.0005041,30]
[314503267,1708377154113,-1530.72,0.0005041,30]
[314503268,1708377154123,-780.99,0.0005041,30]
[314503269,1708377154133,-500.0,0.0005041,30]
[314503270,1708377154142,-2037.65,0.0005041,30]
[314503271,1708377154152,-562.3,0.0005041,30]
[314503272,1708377154162,-898.46,0.0005041,30]
[314503273,1708377154171,-796.83,0.0005041,30]
[314503274,1708377154181,-1380.27,0.0005041,30]
[314503275,1708377154191,-500.0,0.0005041,30]
[314503276,1708377154202,-1316.81,0.0005041,30]
[314503277,1708377154212,-677.42,0.0005041,30]
[314503278,1708377154221,-515.48,0.0005041,30]
[314503279,1708377154231,-500.0,0.0005041,30]
[314503280,1708377154240,-3662.65,0.0005041,30]
[314503281,1708377154250,-500.0,0.0005041,30]
[314503282,1708377154260,-1284.51,0.0005041,30]
[314503283,1708377154270,-679.93,0.0005041,30]
[314503284,1708377154281,-957.91,0.0005041,30]
[314503285,1708377154291,-768.65,0.0005041,30]
[314503286,1708377154301,-500.0,0.0005041,30]
[314503287,1708377154310,-500.0,0.0005041,30]
[314503288,1708377154320,-5456.49,0.0005041,30]
[314503289,1708377154330,-2893.51,0.0005041,30]
[314503290,1708377154339,-500.0,0.0005041,30]
[314503291,1708377154350,-2571.27,0.0005041,30]
[314503292,1708377154361,-826.56,0.0005041,30]
[314503293,1708377154371,-500.0,0.0005041,30]
[314503294,1708377154380,-1599.05,0.0005041,30]
[314503295,1708377154390,-721.27,0.0005041,30]
[314503296,1708377154400,-2039.63,0.0005041,30]
[314503297,1708377154411,-1426.52,0.0005041,30]
[314503298,1708377154421,-1623.95,0.0005041,30]
[314503299,1708377154431,-2095.21,0.0005041,30]
[314503300,1708377154441,-727.3,0.0005041,30]
[314503301,1708377154451,-500.0,0.0005041,30]
[314503302,1708377154461,-846.21,0.0005041,30]
[314503303,1708377154471,-1638.65,0.0005041,30]
[314503304,1708377154484,-1395.59,0.0005041,30]
[314503305,1708377154494,-586.56,0.0005041,30]
[314503306,1708377154504,-1364.92,0.0005041,30]
[314503307,1708377154515,-1945.02,0.0005041,30]
[314503308,1708377154525,-628.31,0.0005041,30]
[314503309,1708377154535,-500.0,0.0005041,30]
[314503310,1708377154545,-1041.23,0.0005041,30]
[314503311,1708377154555,-2020.6,0.0005041,30]
[314503312,1708377154565,-500.0,0.0005041,30]
[314503313,1708377154576,-500.0,0.0005041,30]
[314503314,1708377154585,-500.0,0.0005041,30]
[314503315,1708377154595,-500.0,0.0005041,30]
[314503316,1708377154604,-2298.57,0.0005041,30]
[314503317,1708377154614,-500.0,0.0005041,30]
[314503318,1708377154624,-500.0,0.0005041,30]
[314503319,1708377154634,-1046.88,0.0005041,30]
[314503320,1708377154644,-1430.94,0.0005041,30]
[314503321,1708377154653,-500.0,0.0005041,30]
[314503322,1708377154663,-1313.08,0.0005041,30]
[314503323,1708377154673,-500.0,0.0005041,30]
[314503324,1708377154683,-941.5,0.0005041,30]
[314503325,1708377154692,-990.31,0.0005041,30]
[314503326,1708377154702,-11885.76,0.0005041,30]
[314503327,1708377154712,-500.0,0.0005041,30]
[314503328,1708377154722,-8772.79,0.0005041,30]
[314503329,1708377154732,-2710.69,0.0005041,30]
[314503330,1708377154742,-1007.39,0.0005041,30]
[314503331,1708377154752,-500.0,0.0005041,30]
[314503332,1708377154762,-2030.96,0.0005041,30]
[314503333,1708377154772,-500.0,0.0005041,30]
[314503334,1708377154782,-877.27,0.0005041,30]
[314503335,1708377154792,-800.0,0.0005041,3]
[314503336,1708377154801,-1539.61,0.0005041,30]
[314503337,1708377154811,-740.11,0.0005041,30]
[314503338,1708377154821,-774.82,0.0005041,30]
[314503339,1708377154831,-500.0,0.0005041,30]
[314503340,1708377154841,-530.62,0.0005041,30]
[314503341,1708377154851,-500.0,0.0005041,30]
[314503342,1708377154861,-443.28091948,0.0005041,30]
[314503343,1708377154872,-1422.42,0.0005041,30]
[314503344,1708377154882,-500.0,0.0005041,30]
[314503345,1708377154892,-500.0,0.0005041,30]
[314503346,1708377154902,-2610.19,0.0005041,30]
[314503347,1708377154912,-1255.72,0.0005041,30]
[314503348,1708377154921,-1016.32,0.0005041,30]
[314503349,1708377154931,-1233.1,0.0005041,30]
[314503350,1708377154940,-5037.62,0.0005041,30]
[314503351,1708377154950,-1545.99,0.0005041,30]
[314503352,1708377154960,-771.45,0.0005041,30]
[314503353,1708377154969,-583.37,0.0005041,30]
[314503354,1708377154979,-996.35,0.0005041,30]
[314503355,1708377154991,-753.57,0.0005041,30]
[314503356,1708377155000,-1249.41,0.0005041,30]
[314503357,1708377155010,-180.25172183,0.0005041,30]
[314503358,1708377155020,-609.95,0.0005041,30]
[314503359,1708377155030,-4368.41,0.0005041,30]
[314503360,1708377155040,-3806.98,0.0005041,30]
[314503361,1708377155050,-1205.55,0.0005041,30]
[314503362,1708377155061,-1108.98,0.0005041,30]
[314503363,1708377155070,-500.0,0.0005041,30]
[314503364,1708377155080,-745.48,0.0005041,30]
[314503365,1708377155090,-500.0,0.0005041,30]
[314503366,1708377155100,-761.98,0.0005041,30]
[314503367,1708377155111,-1070.44,0.0005041,30]
[314503368,1708377155121,-2405.19,0.0005041,30]
[314503369,1708377155132,-656.25,0.0005041,30]
[314503370,1708377155142,-1483.04,0.0005041,30]
[314503371,1708377155152,-181.68460286,0.0005041,30]
[314503372,1708377155162,-4891.81,0.0005041,30]
[314503373,1708377155172,-703.9,0.0005041,30]
[314503374,1708377155181,-1120.83,0.0005041,30]
[314503375,1708377155191,-500.0,0.0005041,30]
[314503376,1708377155201,-500.0,0.0005041,30]
[314503377,1708377155212,-7009.22,0.0005041,30]
[314503378,1708377155223,-583.58,0.0005041,30]
[314503379,1708377155233,-5142.29,0.0005041,30]
[314503380,1708377155244,-500.0,0.0005041,30]
[314503381,1708377155254,-1149.32,0.0005041,30]
[314503382,1708377155265,-1818.57,0.0005041,30]
[314503383,1708377155275,-713.94,0.0005041,30]
[314503384,1708377155286,-2123.12,0.0005041,30]
[314503385,1708377155297,-820.56,0.0005041,30]
[314503386,1708377155307,-550.56,0.0005041,30]
[314503387,1708377155317,-4375.89,0.0005041,30]
[314503388,1708377155328,-500.0,0.0005041,30]
[314503389,1708377155338,-1716.3,0.0005041,30]
[314503390,1708377155347,-1435.17,0.0005041,30]
[314503391,1708377155357,-1857.4,0.0005041,30]
[314503392,1708377155367,-505.27,0.0005041,2]
[314503393,1708377155377,-1170.62,0.0005041,30]
[314503394,1708377155387,-1644.0,0.0005041,30]
[314503395,1708377155397,-9747.42,0.0005041,30]
[314503396,1708377155407,-500.0,0.0005041,30]
[314503397,1708377155420,-699.58,0.0005041,30]
[314503398,1708377155430,-500.0,0.0005041,30]
[314503399,1708377155440,-1379.02,0.0005041,30]
[314503400,1708377155450,-500.0,0.0005041,30]
[314503401,1708377155460,-1052.13,0.0005041,30]
[314503402,1708377155473,-504.45,0.0005041,30]
[314503403,1708377155483,-2820.04,0.0005041,30]
[314503404,1708377155493,-1201.01,0.0005041,30]
[314503405,1708377155503,-1773.34,0.0005041,30]
[314503406,1708377155515,-500.0,0.0005041,30]
[314503407,1708377155526,-2704.66,0.0005041,30]
[314503408,1708377155535,-1527.67,0.0005041,30]